Cogmind - Beta 10.2 @@@ ROGUE MODE // 2021.01.04 @ 19:54:21 Player: Destravous Result: Destroyed by G-47 Trooper with Particle Gun Performance ------------- Evolutions (2) 1000 Regions Visited (6) 1200 Robots Destroyed (43) 215 Value Destroyed (901) 901 Prototype IDs (29) 580 Alien Tech Used (0) 0 Bonus (-328) -328 TOTAL SCORE: 3568 Bonus ------- High Alert Combat Kills 11 Aligned with FarCom 300 Friendly Fire -639 Cogmind --------- Core Integrity 0/550 Matter 169/300 Energy 89/100 System Corruption 0% Temperature Cool (9) Movement Core (50) Location -8/Materials Parts ------- > --- POWER (2) -------- (None) > --- PROPULSION (3) --- (None) > --- UTILITY (4) ------ Transport Network Coupler Hacking Suite Hacking Suite > --- WEAPON (2) ------- Chainsword > --- INVENTORY (4) ---- Small Storage Unit Advanced Terrain Scanner Heavy EM Pulse Gun Chainsword Peak State ------------ > --- POWER ------------ Ion Engine > --- PROPULSION ------- Carbon-fiber Leg Carbon-fiber Leg > --- UTILITY ---------- Small Storage Unit Medium Storage Unit Transport Network Coupler Supersonic Drone Bay > --- WEAPON ----------- Improved EM Shotgun Advanced Beam Cannon > --- INVENTORY -------- Heavy Ion Engine Flight Unit Flight Unit ECM Suite Improved EM Shotgun Advanced Beam Cannon Light Assault Rifle Light Assault Rifle EMP Blaster EMP Blaster [Rating: 25] Favorites ----------- Power Ion Engine Engine Ion Engine Power Core Light Nuclear Core Propulsion Flight Unit Leg Aluminum Leg Flight Unit Flight Unit Utility Medium Storage Unit Device Advanced Terrain Scanner Storage Medium Storage Unit Processor Transport Network Coupler Hackware Hacking Suite Weapon Advanced Beam Cannon Energy Gun Improved EM Shotgun Energy Cannon Advanced Beam Cannon Ballistic Gun Light Assault Rifle Launcher EMP Blaster Slashing Weapon Chainsword Build | -11 -10 -9 -9 -9 -8 -8 ------- Run | Scr Mat Mat Min Exi Min Mat Slots Evolved 4 | . . 2 . . . 2 Power 1 | . . . . . . 1 Propulsion 1 | . . . . . . 1 Utility 2 | . . 2 . . . . Weapon . | . . . . . . . Parts Attached 52 | . 2 8 1 2 2 37 Power 9 | . . 1 . . . 8 Engine 8 | . . 1 . . . 7 Core 1 | . . . . . . 1 Reactor . | . . . . . . . Propulsion 12 | . . . 1 . 2 9 Treads . | . . . . . . . Leg 3 | . . . 1 . 2 . Wheel . | . . . . . . . Hover . | . . . . . . . Flight 9 | . . . . . . 9 Utility 10 | . 1 2 . 2 . 5 Device 6 | . . 1 . 2 . 3 Storage 1 | . 1 . . . . . Processor 1 | . . 1 . . . . Hackware 2 | . . . . . . 2 Protection . | . . . . . . . Artifact . | . . . . . . . Weapon 21 | . 1 5 . . . 15 Energy Gun 4 | . . 2 . . . 2 Energy Cannon 4 | . . 1 . . . 3 Ballistic Gun 2 | . . . . . . 2 Ballistic Cannon . | . . . . . . . Launcher 10 | . 1 2 . . . 7 Special Weapon . | . . . . . . . Impact Weapon . | . . . . . . . Slashing Weapon 1 | . . . . . . 1 Piercing Weapon . | . . . . . . . Special Melee Weapon . | . . . . . . . Unidentified Prototypes 5 | . . 2 . 2 . 1 Parts Lost 24 | . 1 2 . . . 21 Power 6 | . . 1 . . . 5 Propulsion 9 | . . 1 . . . 8 Utility 2 | . . . . . . 2 Weapon 7 | . 1 . . . . 6 Highest Loss Streak 9 | . 1 2 . . . 9 Average Slot Usage (%) 85 | . 90 84 100 100 100 74 Engine 9 | . 14 10 11 11 11 6 Core 1 | . . . . . . 2 Leg 13 | . 28 22 22 22 22 2 Flight 8 | . . . . . . 18 Device 8 | . . 5 11 11 11 8 Storage 17 | . 27 22 22 22 22 11 Processor 8 | . . 5 11 11 11 9 Hackware 3 | . . . . . . 6 Energy Gun 5 | . 5 . 11 11 11 1 Energy Cannon 4 | . . 2 11 11 11 1 Launcher 4 | . 5 17 . . . 4 Naked Turns . | . . . . . . . Heaviest Build 34 | 12 20 26 25 26 25 34 Greatest Support 30 | 20 20 20 20 20 30 30 Greatest Overweight (x) 5 | . . 2 1 1 1 5 Average Overweight (x) . | . . . 1 1 . . Largest Inventory Capacity 10 | 6 10 10 10 10 10 10 Average Capacity 9 | 6 9 10 10 10 10 8 Most Carried 10 | 5 4 10 10 10 10 10 Average Carried 7 | 4 2 7 9 10 10 7 Final Capacity 10 | 6 10 10 10 10 10 4 Final Carried 10 | 2 4 10 10 10 10 4 Class Distribution -------------------- 58% | Mutant 24% | Scavenger-Mutant 6% | Skirmisher 4% | Hacker-Mutant 3% | Scavenger-Skirmisher 3% | Scavenger-Scout Dominant Class ---------------- Mutant | -10/Materials Mutant | -9/Materials Mutant | -9/Mines Mutant | -9/Exiles Mutant | -8/Mines Scavenger-Mutant | -8/Materials Resources | -11 -10 -9 -9 -9 -8 -8 ----------- Run | Scr Mat Mat Min Exi Min Mat Matter Collected 754 | 199 32 94 74 . 70 285 Remotely . | . . . . . . . Salvage Created 1093 | . 47 368 . . 70 608 Parts 85 | . 4 27 . . 2 52 Haulers Intercepted 1 | . . 1 . . . . Recyclers Shooed . | . . . . . . . Parts Field Recycled . | . . . . . . . Retrieved Matter . | . . . . . . . Parts Self-Destructed . | . . . . . . . Prevented . | . . . . . . . Kills | -11 -10 -9 -9 -9 -8 -8 ------- Run | Scr Mat Mat Min Exi Min Mat Combat Hostiles Destroyed 35 | . 3 10 . . 1 21 Guns 3 | . . . . . . 3 Cannons 3 | . . 1 . . . 2 AOE 28 | . 3 9 . . 1 15 Classes Destroyed 9 | . 1 4 . . 1 3 Builder 1 | . . 1 . . . . Hauler 1 | . . 1 . . . . Recycler 1 | . . 1 . . . . Operator 1 | . . . . . . 1 Watcher 2 | . . . . . . 2 Swarmer 22 | . . 7 . . . 15 Grunt 13 | . 3 3 . . 1 6 Sentry 1 | . . . . . . 1 Hunter 1 | . . . . . 1 . Best Kill Streak 6 | . 3 4 . . 1 6 Combat Bots Only 6 | . 3 4 . . 1 6 Max Kills in Single Turn 4 | . 2 4 . . 2 3 Gunslinging . | . . . . . . . Exploded 4 | . 2 4 . . 1 3 Melee . | . . . . . . . Uniques/NPCs Destroyed . | . . . . . . . Combat | -11 -10 -9 -9 -9 -8 -8 -------- Run | Scr Mat Mat Min Exi Min Mat Damage Taken 2292 | . 315 208 . . 40 1729 Core 665 | . 55 43 . . . 567 Absorbed by Shields . | . . . . . . . Core Remaining (%) 89 | 100 78 . . . 89 . Volleys Fired 62 | . 7 12 . . 1 42 Largest 2 | . 2 2 . . 2 2 Hottest 113 | . 60 101 . . 113 113 Shots Fired 81 | . 9 20 . . 2 50 Gun 14 | . 4 . . . 1 9 Cannon 15 | . . 1 . . 1 13 Launcher 52 | . 5 19 . . . 28 Special . | . . . . . . . Kinetic 6 | . 2 . . . . 4 Thermal 15 | . . 1 . . 1 13 Explosive 12 | . 5 4 . . . 3 Electromagnetic 48 | . 2 15 . . 1 30 Robot Hit Streak 6 | . 3 4 . . 5 6 Robot Miss Streak 5 | . 1 3 . . . 5 Penetration Max . | . . . . . . . Secondary Targets . | . . . . . . . Shots Hit Robots 31 | . 4 5 . . 2 20 Core Hits 70 | . 7 16 . . 4 43 Critical Hits 1 | . . . . . 1 . Critical Kills . | . . . . . . . Critical Parts Destroyed . | . . . . . . . Melee Attacks 2 | . . . . . . 2 Impact . | . . . . . . . Slashing 2 | . . . . . . 2 Piercing . | . . . . . . . Sneak Attacks . | . . . . . . . Combat Hostiles . | . . . . . . . Follow-up Attacks . | . . . . . . . Damage Inflicted 2654 | . 331 496 . . 233 1594 Guns 192 | . 7 . . . 24 161 Cannons 102 | . . 21 . . 20 61 Explosions 2333 | . 316 470 . . 189 1358 Melee . | . . . . . . . Ramming 27 | . 8 5 . . . 14 Kinetic 72 | . 7 . . . . 65 Thermal 744 | . . 57 . . 209 478 Explosive 639 | . 316 138 . . . 185 Electromagnetic 1172 | . . 296 . . 24 852 Impact . | . . . . . . . Slashing . | . . . . . . . Piercing . | . . . . . . . Highest Corruption . | . . . . . . . Average Corruption . | . . . . . . . Corruption Purged . | . . . . . . . Overload Shots . | . . . . . . . Overflow Damage 233 | . . . . . 6 227 Projectiles . | . . . . . . . Explosions 233 | . . . . . 6 227 Melee . | . . . . . . . Knockbacks . | . . . . . . . Impact . | . . . . . . . Kinetic . | . . . . . . . Secondary . | . . . . . . . Self-Inflicted Damage 467 | . 97 18 . . 41 311 Shots 19 | . 3 2 . . 1 13 Rammed 6 | . 2 . . . . 4 Targets Rammed 8 | . 3 1 . . . 4 Kicked 2 | . 1 1 . . . . Crushed . | . . . . . . . Highest Temperature 224 | . 20 15 . . 54 224 Average Temperature 50 | . 10 10 . . 32 56 Received Heat Transfer 555 | . 120 39 . . . 396 Siege Activations . | . . . . . . . Robots Corrupted 1 | . . . . . . 1 Combat Hostiles 1 | . . . . . . 1 Parts Fried 4 | . . . . . . 4 Impact Corruptions . | . . . . . . . Robots Melted . | . . . . . . . Combat Hostiles . | . . . . . . . Parts Melted . | . . . . . . . Heat Transferred 935 | . . 37 . . 287 611 Parts Sabotaged . | . . . . . . . Parts Stolen . | . . . . . . . Parts Stripped . | . . . . . . . Power Chain Reactions 11 | . . 5 . . 1 5 Missiles Intercepted . | . . . . . . . Alert | -11 -10 -9 -9 -9 -8 -8 ------- Run | Scr Mat Mat Min Exi Min Mat Peak Influence 419 | . 160 349 132 . 35 419 Initial 132 | . . 67 132 . . 9 Average 200 | . 64 200 132 . 34 260 Maximum Alert Level 2 | . . 1 . . . 2 Low Security (%) 48 | 100 100 57 100 . 100 23 Level 1 47 | . . 42 . . . 69 Level 2 4 | . . . . . . 7 Level 3 . | . . . . . . . Level 4 . | . . . . . . . Level 5 . | . . . . . . . High Security . | . . . . . . . Max Security . | . . . . . . . Squads Dispatched 12 | . 3 2 . . . 7 Investigation 3 | . . 1 . . . 2 Extermination . | . . . . . . . Reinforcement 7 | . 3 1 . . . 3 Assault . | . . . . . . . Garrison 2 | . . . . . . 2 Intercept . | . . . . . . . Construction Impeded 2 | . . 1 . . . 1 Haulers Reinforced . | . . . . . . . Stealth | -11 -10 -9 -9 -9 -8 -8 --------- Run | Scr Mat Mat Min Exi Min Mat Distress Signals 2 | . . . . . . 2 Communications Jammed . | . . . . . . . Distress Signals . | . . . . . . . Times Spotted 76 | . 8 14 . . . 54 Peak Tracking Total 12 | . 5 6 . . . 12 Tactical Retreats 10 | . . 2 . . . 8 Traps | -11 -10 -9 -9 -9 -8 -8 ------- Run | Scr Mat Mat Min Exi Min Mat Traps Triggered 2 | . . 1 . . . 1 Indirectly 1 | . . . . . . 1 Trap Hack Attempts . | . . . . . . . Triggered . | . . . . . . . Disarmed . | . . . . . . . Reprogrammed . | . . . . . . . Reused . | . . . . . . . Traps Extracted . | . . . . . . . Installed . | . . . . . . . Triggered . | . . . . . . . Machines | -11 -10 -9 -9 -9 -8 -8 ---------- Run | Scr Mat Mat Min Exi Min Mat Machines Disabled 8 | . 2 3 . . . 3 Max in Single Turn 2 | . 1 2 . . . 2 Machines Sabotaged . | . . . . . . . Garrisons Compromised . | . . . . . . . Overloaded Fab Kills . | . . . . . . . Fab Network Shutdowns . | . . . . . . . Hacking | -11 -10 -9 -9 -9 -8 -8 --------- Run | Scr Mat Mat Min Exi Min Mat Machines Accessed 8 | . . . . 1 . 7 Terminals 6 | . . . . . . 6 Fabricators . | . . . . . . . Repair Stations . | . . . . . . . Recycling Units . | . . . . . . . Scanalyzers 1 | . . . . . . 1 Garrison Access . | . . . . . . . Total Hacks 30 | . . . . 1 . 29 Successful 22 | . . . . 1 . 21 Failed 8 | . . . . . . 8 Catastrophic . | . . . . . . . Database Lockouts . | . . . . . . . Manual 21 | . . . . 1 . 20 Terminals 25 | . . . . . . 25 Fabricators . | . . . . . . . Repair Stations . | . . . . . . . Recycling Units . | . . . . . . . Scanalyzers 4 | . . . . . . 4 Garrison Access . | . . . . . . . Terminal Hacks 13 | . . . . 1 . 12 Part Schematic 2 | . . . . . . 2 Prototype ID Bank 1 | . . . . . . 1 Level Access Points 1 | . . . . . . 1 Branch Access Points 1 | . . . . . . 1 Terminal Index 1 | . . . . . . 1 Alert Level 2 | . . . . . . 2 Unreport Threat 1 | . . . . . . 1 Registered Components 1 | . . . . . . 1 Registered Prototypes 1 | . . . . . . 1 Zone Layout 1 | . . . . . . 1 EX-Prototype ID Bank 1 | . . . . 1 . . Fabricator Hacks . | . . . . . . . Repair Station Hacks . | . . . . . . . Recycling Unit Hacks . | . . . . . . . Scanalyzer 4 | . . . . . . 4 Insert Component 2 | . . . . . . 2 Analyze 2 | . . . . . . 2 Garrison Access Hacks . | . . . . . . . Unauthorized Hacks 5 | . . . . . . 5 Terminals 5 | . . . . . . 5 Assimilate 1 | . . . . . . 1 Botnet 4 | . . . . . . 4 Fabricators . | . . . . . . . Repair Stations . | . . . . . . . Recycling Units . | . . . . . . . Scanalyzers . | . . . . . . . Garrison Access . | . . . . . . . Data Cores Recovered . | . . . . . . . Used . | . . . . . . . Hacking Detections 6 | . . . . . . 6 Full Trace Events 2 | . . . . . . 2 Feedback Events . | . . . . . . . Feedback Blocked . | . . . . . . . Robot Schematics Acquired . | . . . . . . . Robots Built . | . . . . . . . Matter . | . . . . . . . Time . | . . . . . . . Total Robot Build Rating . | . . . . . . . Part Schematics Acquired 4 | . . . . . . 4 Parts Built . | . . . . . . . Matter . | . . . . . . . Time . | . . . . . . . Total Part Build Rating . | . . . . . . . Parts Repaired . | . . . . . . . Time . | . . . . . . . Parts Recycled . | . . . . . . . Recycled Matter . | . . . . . . . Retrieved Matter . | . . . . . . . Retrieved Components . | . . . . . . . Parts Scanalyzed 2 | . . . . . . 2 Part Schematics Acquired 2 | . . . . . . 2 Parts Damaged . | . . . . . . . Bothacking | -11 -10 -9 -9 -9 -8 -8 ------------ Run | Scr Mat Mat Min Exi Min Mat Used RIF Installer . | . . . . . . . Robots Hacked . | . . . . . . . Non-combat . | . . . . . . . Combat . | . . . . . . . Robot Hacks Applied . | . . . . . . . Relay Couplers Released . | . . . . . . . Robots Rewired . | . . . . . . . Allies Hacked . | . . . . . . . Hacks Repelled . | . . . . . . . Allies | -11 -10 -9 -9 -9 -8 -8 -------- Run | Scr Mat Mat Min Exi Min Mat Total Allies 3 | . . . 3 . . . Largest Group 3 | . . . 3 3 2 2 Highest-Rated Group 40 | . . . 40 40 32 32 Highest-Rated Ally 16 | . . . 16 16 16 16 Total Orders 3 | . . . . . 3 . EXPLORE 3 | . . . . . 3 . Ally Attacks 3 | . . . . . . 3 Total Damage 15 | . . . . . . 15 Kills . | . . . . . . . Allies Corrupted . | . . . . . . . Allies Melted . | . . . . . . . Intel | -11 -10 -9 -9 -9 -8 -8 ------- Run | Scr Mat Mat Min Exi Min Mat Robot Analysis Total . | . . . . . . . Derelict Logs Recovered . | . . . . . . . Drone Launches 3 | . . . . . 3 . Drone Recoveries 2 | . . . . . 2 . Exploration | -11 -10 -9 -9 -9 -8 -8 ------------- Run | Scr Mat Mat Min Exi Min Mat Turns Passed 1992 | 2 175 217 89 396 160 953 Spaces Moved 1378 | 1 126 110 59 262 76 744 Core 150 | . . . . . . 150 Treads . | . . . . . . . Legs 743 | 1 126 110 59 262 76 109 Wheels . | . . . . . . . Hover . | . . . . . . . Flight 485 | . . . . . . 485 Fastest Speed 34 | 120 120 120 150 150 120 34 Average Speed 114 | 120 120 140 150 150 122 94 Slowest Speed 440 | 120 120 180 150 150 150 440 Overloaded Moves . | . . . . . . . Propulsion Burnouts . | . . . . . . . Robots Hopped 6 | . . . . . . 6 Cave-ins Triggered . | . . . . . . . Exploration Rate (%) 35 | 2 32 15 14 62 65 61 Regions Visited 6 Branch Regions 3 Pre-discovered Areas . | . . . . . . . Known Exits Taken . | . . . . . . . Unknown Exits Taken 6 | 1 1 1 1 1 1 . Scrap Searched . | . . . . . . . Spaces Dug 11 | . . . . . . 11 Terrain Destroyed 124 | . 15 28 . . . 81 Melee 2 | . . . . . . 2 Projectile . | . . . . . . . AOE 122 | . 15 28 . . . 79 Terrain Rammed . | . . . . . . . Walls Destroyed . | . . . . . . . Machines Disabled . | . . . . . . . Actions | -11 -10 -9 -9 -9 -8 -8 --------- Run | Scr Mat Mat Min Exi Min Mat Total 1691 | 4 140 150 60 265 142 930 Wait 150 | . . 11 . . 61 78 Move 1360 | . 125 109 58 261 75 732 Hop 6 | . . . . . . 6 Pick Up 21 | . 2 8 1 . . 10 Fast Attach 20 | . 1 3 . 2 . 14 Attach 15 | . 1 2 1 . . 11 Detach 7 | . 1 . . . . 6 Swap 17 | . . 3 . . 2 12 Drop 23 | 4 . 1 . 2 3 13 Fire 62 | . 7 12 . . 1 42 Melee 2 | . . . . . . 2 Ram 4 | . . . . . . 4 Kick 4 | . 3 1 . . . . Crush . | . . . . . . . Escape Stasis . | . . . . . . . Rewire . | . . . . . . . Trap . | . . . . . . . Miscellaneous . | . . . . . . . Route ------- -11/Scrapyard -10/Materials -9/Materials -9/Mines -9/Exiles (discovered 2 exits: [*Min x2]) -8/Mines -8/Materials (discovered 3 exits: *Fac x3) History --------- Turn | Location | Event 3 | -11/Scrapyard | Discovered new exit (range 0) 3 | -11/Scrapyard | Entered Materials 173 | -10/Materials | Discovered new exit (range 4) 178 | -10/Materials | Entered another Materials area 178 | -9/Materials | Evolved 2 slots: Utility x2 309 | -9/Materials | Build established: Mutant 340 | -9/Materials | Discovered new exit (range 10) 395 | -9/Materials | Entered Mines 442 | -9/Mines | Assisted by bots powering up and referring to "LRC-V3" 475 | -9/Mines | Deemed a non-threat by the Exiles lab entrance 477 | -9/Mines | Discovered new exit (range 5) 484 | -9/Mines | Entered Exiles 484 | -9/Exiles | Accompanied by 3 allies 508 | -9/Exiles | Discovered new exit (range 15) 549 | -9/Exiles | Met 8R-AWN 574 | -9/Exiles | Met EX-HEX 621 | -9/Exiles | Met EX-BIN 639 | -9/Exiles | Aligned with FarCom system 640 | -9/Exiles | Given EX-Vault access code 675 | -9/Exiles | Opened EX-Vault 684 | -9/Exiles | Found Prototype Device 684 | -9/Exiles | Identified Skeleton Box 697 | -9/Exiles | Found Prototype Device 697 | -9/Exiles | Identified Supersonic Drone Bay 740 | -9/Exiles | Exiles lab attacked by MAIN.C 859 | -9/Exiles | Discovered new exit (range 14) 880 | -9/Exiles | Left Exiles lab with Supersonic Drone Bay 880 | -9/Exiles | Entered Mines 880 | -8/Mines | Accompanied by 3 allies 913 | -8/Mines | Discovered new exit (range 29) 1040 | -8/Mines | Entered Materials 1040 | -8/Materials | Accompanied by 2 allies 1040 | -8/Materials | Evolved 2 slots: Power x1, Propulsion x1 1536 | -8/Materials | Build established: Scavenger-Mutant 1852 | -8/Materials | Core integrity fell below 50% 1860 | -8/Materials | Garrison activated, responded to threat 1894 | -8/Materials | Lost 9 parts (2p4n1u2w) 1929 | -8/Materials | Identified exit to Factory 1980 | -8/Materials | Core integrity fell below 20% 1993 | -8/Materials | Destroyed by G-47 Trooper with Particle Gun Last Messages --------------- Testing... System interface override in place. 01946_ ALERT: Suspicious activity at Terminal M010. Dispatching Investigation squad. 01950_ Lgt. Ion Engine destroyed. 01950_ Destroyed Lgt. Ion Engine. 01963_ ALERT: Hostiles spotted, dispatching reinforcements to Terminal M007. 01980_ S-10 Pest destroyed. 01980_ W-25 Informer sends out distress signal. 01982_ K-01 Serf collects debris. 01982_ R-06 Scavenger collects Flight Unit. 01983_ Mni. Grenade Launcher destroyed. 01983_ K-01 Serf collects debris. 01984_ Acquired 10 matter. 01985_ K-01 Serf collects debris. 01985_ Acquired Flight Unit. 01986_ Flight Unit destroyed. 01987_ K-01 Serf collects debris. 01988_ Weight Redist. System destroyed. Map ----- +----------------------------------------------------+ | ?#""" ### #### # #??????# #?# | | ?#""" # ## # #??????# #?# | | ?????????# a ###########??????# #?# | | ?????????# #????????????????# #?# | | ?????????# #?????????????####/### | | ?????????# ####"#?????????????# # | | ?#"?"????## ##??###?????????????# # | | ?# ????# Y#???????????????????# """ # | | ?#! [ ??# #???????????????????# """ # | | ?# ## g##??????????????????# """ + | | ?????#+# g ###########????????# # | | ?????# % g # #????????########+ | | ?????# *% # ####???????# | | ?????# = [g # Y ????????# | | ?????###+ ##s # #??????????# | | ??????# # # #??????????# | | ??????#""" w # #???????????# | | ??????#""" # g #???????????# | | ??????#""" + #???????????# | | ??????# #g ^ #???????????# | | ??????#""" # #???????????####### | | ???????""" !# #######???????????? | | ???????""" # #???????????? | | ????????? # ##### #???????????? | | ?????????####### ###+##?????????????????? | | ???????????????# @#??????????????????????? | | ???????????????# #??????????????????????? | | ???????????????# #??????????????????????? | | ???????????????+ #??????????????????????? | | ???????????????# < #??????????????????????? | | ???????????????# #??????????????????????? | | ???????????????#####??????????????????????? | | ??????????????????????????????????????????? | | ??????????????????????????????????????????? | | ??????????????????????????????????????????? | | ??????????????????????????????????????????? | | ??????????????????????????????????????????? | | ??????????????????????????????????????????? | | ??????????????????????????????????????????? | | | | | | | | | | | | | | | | | | | | | | | +----------------------------------------------------+ Best States ------------- Heat Dissipation 31 Energy Generation 19 Energy Capacity 430 Matter Stores 300 Matter Capacity 300 Sight Range 16 Robot Scan Range 10 Terrain Scan Range 20 Terrain Scan Density 10 Additional Mass Support 6 Evasion (%) 63 Offensive Hacking 20 Item Schematics ----------------- EMP Blaster | -8/Materials | Scanalyzed Sml. Storage Unit | -8/Materials | Scanalyzed Imp. Flight Unit | -8/Materials | Hacked Cesium-ion Thruster | -8/Materials | Hacked Robot Schematics ------------------ None Fabricated ------------ Nothing Alien Tech Used ----------------- None Achievements -------------- Backstab Let's See Who's Tougher More Dakka Please Power Corrupts Challenges ------------ None Game ------ Seed ArmageddonAntimissileCharger Manual? 0 Play Time 00:47:45 Cumulative 98.7 hours Start 2021.01.04 @ 19:02:30 End 2021.01.04 @ 19:54:21 Sessions 1 Manual Loads 0 Difficulty Rogue Special Mode None Game No. 68 Rogue 68 Adventurer 0 Explorer 0 Win Type - Total 2 Types 2/0/0/0/0/0/0/0/0 Lore% 41 Gallery% 53 Achievement% 32 Wizard Run 0 Options --------- ASCII 0 Keyboard 0 Movement Mouse Keybinds 0 Fullscreen 1 Font 18/SmallcapsGlow Map View 76x50 Tactical HUD 1 Map Filters NONE Filters NONE Steam 1 RUN: 83ddb255-a41d-4818-99d9-afebcbdcd113